[Event "Titled Tuesday Blitz February 07 Early 2023"]
[White "Zampronha, Wladimir Camilo"]
[Black "Burke, John F"]
[WhiteFideId "2103087"]
[BlackFideId "2052970"]
[WhiteElo "2176"]
[BlackElo "2013"]
[Result "0-1"]
[Round "08"]
[TimeControl "180+2"]
[Date "2023.02.07"]
[WhiteClock "0:00:18"]
[BlackClock "0:01:05"]

1. e4 {[%clk 0:03:00]}  c5 {[%clk 0:03:00]} 2. Nf3 {[%clk 0:03:00]}  Nc6 {[%clk 0:03:00]} 3. d4 {[%clk 0:03:01]}  cxd4 {[%clk 0:03:00]} 4. Nxd4 {[%clk 0:03:01]}  e6 {[%clk 0:03:00]} 5. Nc3 {[%clk 0:03:00]}  Qc7 {[%clk 0:03:01]} 6. Be2 {[%clk 0:02:59]}  a6 {[%clk 0:03:00]} 7. O-O {[%clk 0:02:59]}  Nf6 {[%clk 0:03:00]} 8. Be3 {[%clk 0:02:59]}  Bb4 {[%clk 0:03:00]} 9. Na4 {[%clk 0:02:57]}  O-O {[%clk 0:02:51]} 10. Nxc6 {[%clk 0:02:47]}  bxc6 {[%clk 0:02:50]} 11. c4 {[%clk 0:02:32]}  Bd6 {[%clk 0:02:31]} 12. f4 {[%clk 0:02:21]}  Nxe4 {[%clk 0:02:28]} 13. c5 {[%clk 0:02:19]}  Be7 {[%clk 0:02:27]} 14. Qd3 {[%clk 0:02:13]}  Nf6 {[%clk 0:02:24]} 15. Rfd1 {[%clk 0:02:08]}  Nd5 {[%clk 0:02:24]} 16. Bd2 {[%clk 0:02:00]}  a5 {[%clk 0:02:23]} 17. Qf3 {[%clk 0:01:41]}  Rb8 {[%clk 0:02:13]} 18. a3 {[%clk 0:01:35]}  f5 {[%clk 0:02:04]} 19. Rab1 {[%clk 0:01:28]}  Qa7 {[%clk 0:01:54]} 20. Rdc1 {[%clk 0:01:23]}  Ba6 {[%clk 0:01:45]} 21. Kh1 {[%clk 0:01:18]}  Bb5 {[%clk 0:01:41]} 22. Bxb5 {[%clk 0:00:59]}  Rxb5 {[%clk 0:01:34]} 23. Nb6 {[%clk 0:00:57]}  Nxb6 {[%clk 0:01:28]} 24. cxb6 {[%clk 0:00:58]}  Qxb6 {[%clk 0:01:28]} 25. Bc3 {[%clk 0:00:53]}  Bf6 {[%clk 0:01:28]} 26. Bxf6 {[%clk 0:00:52]}  Rxf6 {[%clk 0:01:28]} 27. Qd3 {[%clk 0:00:52]}  d5 {[%clk 0:01:28]} 28. Qc2 {[%clk 0:00:47]}  c5 {[%clk 0:01:26]} 29. a4 {[%clk 0:00:46]}  Rb4 {[%clk 0:01:23]} 30. Qxc5 {[%clk 0:00:46]}  Qxc5 {[%clk 0:01:23]} 31. Rxc5 {[%clk 0:00:47]}  Rxa4 {[%clk 0:01:22]} 32. g3 {[%clk 0:00:34]}  Rf8 {[%clk 0:01:18]} 33. Rc6 {[%clk 0:00:33]}  Kf7 {[%clk 0:01:17]} 34. Rbc1 {[%clk 0:00:30]}  Rb8 {[%clk 0:01:15]} 35. R1c2 {[%clk 0:00:24]}  Ra2 {[%clk 0:01:10]} 36. Ra6 {[%clk 0:00:24]}  Rbxb2 {[%clk 0:01:09]} 37. Rxb2 {[%clk 0:00:25]}  Rxb2 {[%clk 0:01:09]} 38. Rxa5 {[%clk 0:00:26]}  Kf6 {[%clk 0:01:09]} 39. Ra7 {[%clk 0:00:24]}  h6 {[%clk 0:01:09]} 40. Ra6 {[%clk 0:00:24]}  g5 {[%clk 0:01:09]} 41. fxg5+ {[%clk 0:00:22]}  hxg5 {[%clk 0:01:10]} 42. Ra4 {[%clk 0:00:20]}  Ke5 {[%clk 0:01:08]} 43. Ra6 {[%clk 0:00:19]}  g4 {[%clk 0:01:09]} 44. Ra5 {[%clk 0:00:19]}  Rc2 {[%clk 0:01:08]} 45. Ra4 {[%clk 0:00:19]}  Kf6 {[%clk 0:01:06]} 46. Ra6 {[%clk 0:00:19]}  d4 {[%clk 0:01:06]} 47. Rd6 {[%clk 0:00:18]}  Rd2 {[%clk 0:01:05]} 0-1


[Site "https://www.chess.com"]

[Event "Titled Tuesday Blitz February 07 Early 2023"]
[White "Necula, Iulian"]
[Black "Hartikainen, Jarmo"]
[WhiteFideId "1232380"]
[BlackFideId "503134"]
[WhiteElo "1851"]
[BlackElo "2108"]
[Result "0-1"]
[Round "08"]
[TimeControl "180+2"]
[Date "2023.02.07"]
[WhiteClock "0:01:58"]
[BlackClock "0:00:31"]

1. d4 {[%clk 0:03:00]}  Nf6 {[%clk 0:02:59]} 2. Nc3 {[%clk 0:03:01]}  e6 {[%clk 0:02:58]} 3. Bf4 {[%clk 0:03:01]}  d5 {[%clk 0:02:57]} 4. Nb5 {[%clk 0:02:57]}  Na6 {[%clk 0:02:56]} 5. e3 {[%clk 0:02:57]}  Be7 {[%clk 0:02:50]} 6. Nf3 {[%clk 0:02:55]}  O-O {[%clk 0:02:48]} 7. Be2 {[%clk 0:02:51]}  c5 {[%clk 0:02:42]} 8. c3 {[%clk 0:02:46]}  Ne4 {[%clk 0:02:34]} 9. O-O {[%clk 0:02:41]}  Bd7 {[%clk 0:02:33]} 10. a4 {[%clk 0:02:39]}  Bc6 {[%clk 0:02:17]} 11. Ne5 {[%clk 0:02:38]}  f6 {[%clk 0:02:10]} 12. Nxc6 {[%clk 0:02:21]}  bxc6 {[%clk 0:02:08]} 13. Na3 {[%clk 0:02:22]}  Nc7 {[%clk 0:02:03]} 14. h3 {[%clk 0:02:19]}  Rb8 {[%clk 0:02:01]} 15. Rb1 {[%clk 0:02:18]}  c4 {[%clk 0:01:54]} 16. f3 {[%clk 0:02:15]}  Bxa3 {[%clk 0:01:50]} 17. bxa3 {[%clk 0:02:14]}  Nxc3 {[%clk 0:01:47]} 18. Rxb8 {[%clk 0:02:11]}  Qxb8 {[%clk 0:01:40]} 19. Qd2 {[%clk 0:02:10]}  Nxe2+ {[%clk 0:01:34]} 20. Qxe2 {[%clk 0:02:11]}  Qb7 {[%clk 0:01:30]} 21. e4 {[%clk 0:02:11]}  Re8 {[%clk 0:01:22]} 22. Bd6 {[%clk 0:02:10]}  Na8 {[%clk 0:00:53]} 23. Bb4 {[%clk 0:02:03]}  Qb6 {[%clk 0:00:50]} 24. Qe3 {[%clk 0:02:00]}  a5 {[%clk 0:00:42]} 25. Bc5 {[%clk 0:02:00]}  Qb3 {[%clk 0:00:39]} 26. exd5 {[%clk 0:01:59]}  Qxe3+ {[%clk 0:00:34]} 27. Kh2 {[%clk 0:01:58]}  exd5 {[%clk 0:00:31]} 0-1


[Site "https://www.chess.com"]

[Event "Titled Tuesday Blitz February 07 Early 2023"]
[White "Osmonbekov, Talaibek"]
[Black "Fabris, Alberto"]
[WhiteFideId "2017253"]
[BlackFideId "801348"]
[WhiteElo "2137"]
[BlackElo "2230"]
[Result "0-1"]
[Round "08"]
[TimeControl "180+2"]
[Date "2023.02.07"]
[WhiteClock "0:00:01"]
[BlackClock "0:00:03"]

1. d4 {[%clk 0:03:00]}  Nf6 {[%clk 0:02:59]} 2. Bf4 {[%clk 0:03:01]}  e6 {[%clk 0:02:59]} 3. Nc3 {[%clk 0:03:01]}  d5 {[%clk 0:02:59]} 4. e3 {[%clk 0:03:02]}  Bd6 {[%clk 0:02:59]} 5. Nf3 {[%clk 0:03:02]}  Bxf4 {[%clk 0:02:59]} 6. exf4 {[%clk 0:03:02]}  O-O {[%clk 0:02:58]} 7. Bd3 {[%clk 0:03:03]}  c5 {[%clk 0:02:57]} 8. dxc5 {[%clk 0:03:02]}  Qa5 {[%clk 0:02:56]} 9. O-O {[%clk 0:03:02]}  Qxc5 {[%clk 0:02:56]} 10. Re1 {[%clk 0:03:03]}  Nc6 {[%clk 0:02:55]} 11. Ne5 {[%clk 0:03:02]}  a6 {[%clk 0:02:44]} 12. Qf3 {[%clk 0:03:00]}  b5 {[%clk 0:02:40]} 13. Qh3 {[%clk 0:02:53]}  h6 {[%clk 0:02:28]} 14. a3 {[%clk 0:02:39]}  Bb7 {[%clk 0:02:26]} 15. g4 {[%clk 0:02:23]}  Nxe5 {[%clk 0:02:00]} 16. fxe5 {[%clk 0:02:22]}  Ne4 {[%clk 0:01:55]} 17. Re3 {[%clk 0:02:03]}  Rad8 {[%clk 0:01:35]} 18. f4 {[%clk 0:01:52]}  Nxc3 {[%clk 0:01:22]} 19. bxc3 {[%clk 0:01:51]}  d4 {[%clk 0:01:22]} 20. cxd4 {[%clk 0:01:43]}  Qxd4 {[%clk 0:01:22]} 21. Rf1 {[%clk 0:01:38]}  Qd5 {[%clk 0:01:06]} 22. Be4 {[%clk 0:01:36]}  Qd7 {[%clk 0:01:06]} 23. Bd3 {[%clk 0:01:17]}  Qd5 {[%clk 0:01:05]} 24. g5 {[%clk 0:01:08]}  Qd4 {[%clk 0:00:40]} 25. Rf2 {[%clk 0:00:36]}  Qa1+ {[%clk 0:00:38]} 26. Rf1 {[%clk 0:00:31]}  Qd4 {[%clk 0:00:37]} 27. Qg3 {[%clk 0:00:11]}  g6 {[%clk 0:00:30]} 28. gxh6 {[%clk 0:00:10]}  Kh7 {[%clk 0:00:30]} 29. h4 {[%clk 0:00:10]}  Rg8 {[%clk 0:00:30]} 30. Kh2 {[%clk 0:00:09]}  Qd7 {[%clk 0:00:18]} 31. h5 {[%clk 0:00:07]}  Qe7 {[%clk 0:00:17]} 32. hxg6+ {[%clk 0:00:05]}  fxg6 {[%clk 0:00:16]} 33. Rg1 {[%clk 0:00:05]}  Kh8 {[%clk 0:00:08]} 34. Bxg6 {[%clk 0:00:05]}  Rdf8 {[%clk 0:00:05]} 35. Qg5 {[%clk 0:00:03]}  Qxg5 {[%clk 0:00:04]} 36. fxg5 {[%clk 0:00:03]}  Rxg6 {[%clk 0:00:04]} 37. Rd3 {[%clk 0:00:01]}  Rf7 {[%clk 0:00:03]} 0-1


[Site "https://www.chess.com"]

[Event "Titled Tuesday Blitz February 07 Early 2023"]
[White "Stolz, Mike"]
[Black "Winkels, Marcel"]
[WhiteFideId "4617134"]
[BlackFideId "1003887"]
[WhiteElo "2330"]
[BlackElo "1960"]
[Result "0-1"]
[Round "08"]
[TimeControl "180+2"]
[Date "2023.02.07"]
[WhiteClock "0:00:01"]
[BlackClock "0:01:09"]

1. c4 {[%clk 0:03:00]}  Nf6 {[%clk 0:02:58]} 2. Nf3 {[%clk 0:03:00]}  c5 {[%clk 0:02:58]} 3. g3 {[%clk 0:03:00]}  d5 {[%clk 0:02:58]} 4. cxd5 {[%clk 0:02:59]}  Nxd5 {[%clk 0:02:58]} 5. Bg2 {[%clk 0:03:00]}  Nc6 {[%clk 0:02:58]} 6. O-O {[%clk 0:03:00]}  Nc7 {[%clk 0:02:58]} 7. Nc3 {[%clk 0:03:00]}  e5 {[%clk 0:02:58]} 8. d3 {[%clk 0:03:00]}  f6 {[%clk 0:02:58]} 9. Be3 {[%clk 0:02:59]}  Be7 {[%clk 0:02:57]} 10. Rc1 {[%clk 0:02:59]}  O-O {[%clk 0:02:55]} 11. Nd2 {[%clk 0:02:54]}  Nd4 {[%clk 0:02:49]} 12. Nb3 {[%clk 0:02:44]}  Rb8 {[%clk 0:02:41]} 13. Ne4 {[%clk 0:02:40]}  b6 {[%clk 0:02:33]} 14. Nxd4 {[%clk 0:02:32]}  cxd4 {[%clk 0:02:25]} 15. Bd2 {[%clk 0:02:28]}  Be6 {[%clk 0:02:24]} 16. Qa4 {[%clk 0:02:27]}  Nd5 {[%clk 0:02:12]} 17. a3 {[%clk 0:02:04]}  Rc8 {[%clk 0:02:10]} 18. Rxc8 {[%clk 0:01:59]}  Qxc8 {[%clk 0:02:06]} 19. Rc1 {[%clk 0:01:59]}  Qd8 {[%clk 0:01:58]} 20. Qxa7 {[%clk 0:01:55]}  f5 {[%clk 0:01:50]} 21. Rc6 {[%clk 0:00:47]}  Bf7 {[%clk 0:01:32]} 22. Ng5 {[%clk 0:00:20]}  Bxg5 {[%clk 0:01:30]} 23. Bxg5 {[%clk 0:00:19]}  Qxg5 {[%clk 0:01:28]} 24. Bxd5 {[%clk 0:00:14]}  Bxd5 {[%clk 0:01:26]} 25. Rxb6 {[%clk 0:00:15]}  Qd2 {[%clk 0:01:24]} 26. f3 {[%clk 0:00:03]}  Qxe2 {[%clk 0:01:20]} 27. Rb7 {[%clk 0:00:03]}  Qe3+ {[%clk 0:01:10]} 28. Kf1 {[%clk 0:00:01]}  Qxf3+ {[%clk 0:01:10]} 29. Ke1 {[%clk 0:00:01]}  Qe3+ {[%clk 0:01:09]} 0-1


[Site "https://www.chess.com"]

[Event "Titled Tuesday Blitz February 07 Early 2023"]
[White "Dzhaparov, Medet"]
[Black "Mohammadian, Mohammad"]
[WhiteFideId "13803689"]
[BlackFideId "12566055"]
[WhiteElo "1578"]
[BlackElo "1398"]
[Result "1-0"]
[Round "08"]
[TimeControl "180+2"]
[Date "2023.02.07"]
[WhiteClock "0:00:24"]
[BlackClock "0:00:40"]

1. e4 {[%clk 0:03:00]}  e5 {[%clk 0:02:58]} 2. Nf3 {[%clk 0:02:59]}  Nc6 {[%clk 0:02:57]} 3. d4 {[%clk 0:03:00]}  exd4 {[%clk 0:02:54]} 4. Nxd4 {[%clk 0:03:00]}  Bc5 {[%clk 0:02:53]} 5. Be3 {[%clk 0:03:00]}  Qf6 {[%clk 0:02:53]} 6. c3 {[%clk 0:03:00]}  Nge7 {[%clk 0:02:50]} 7. Bc4 {[%clk 0:03:01]}  Bb6 {[%clk 0:02:47]} 8. O-O {[%clk 0:03:01]}  O-O {[%clk 0:02:47]} 9. Re1 {[%clk 0:02:59]}  d6 {[%clk 0:02:46]} 10. Nc2 {[%clk 0:02:58]}  Ne5 {[%clk 0:02:41]} 11. Bb3 {[%clk 0:02:56]}  Bg4 {[%clk 0:02:37]} 12. f3 {[%clk 0:02:55]}  Bxe3+ {[%clk 0:02:35]} 13. Nxe3 {[%clk 0:02:55]}  Be6 {[%clk 0:02:31]} 14. Kh1 {[%clk 0:02:55]}  Bxb3 {[%clk 0:02:30]} 15. Qxb3 {[%clk 0:02:56]}  Rab8 {[%clk 0:02:28]} 16. Nc4 {[%clk 0:02:53]}  Nxc4 {[%clk 0:02:26]} 17. Qxc4 {[%clk 0:02:54]}  Nc6 {[%clk 0:02:24]} 18. Nd2 {[%clk 0:02:51]}  Rfe8 {[%clk 0:02:14]} 19. Nb3 {[%clk 0:02:44]}  Re5 {[%clk 0:02:11]} 20. Nd4 {[%clk 0:02:42]}  Nxd4 {[%clk 0:02:10]} 21. cxd4 {[%clk 0:02:40]}  Rh5 {[%clk 0:02:08]} 22. Qxc7 {[%clk 0:02:36]}  Rf8 {[%clk 0:02:01]} 23. Qd7 {[%clk 0:01:20]}  Qf4 {[%clk 0:01:58]} 24. h3 {[%clk 0:01:18]}  Qg3 {[%clk 0:01:43]} 25. Qg4 {[%clk 0:01:17]}  Qxg4 {[%clk 0:01:39]} 26. fxg4 {[%clk 0:01:18]}  Rb5 {[%clk 0:01:37]} 27. b3 {[%clk 0:01:17]}  Rb4 {[%clk 0:01:37]} 28. d5 {[%clk 0:01:11]}  Re8 {[%clk 0:01:36]} 29. Rac1 {[%clk 0:01:12]}  h6 {[%clk 0:01:33]} 30. Rc7 {[%clk 0:01:11]}  Rbxe4 {[%clk 0:01:33]} 31. Rxe4 {[%clk 0:01:10]}  Rxe4 {[%clk 0:01:32]} 32. Rxb7 {[%clk 0:01:10]}  Re1+ {[%clk 0:01:32]} 33. Kh2 {[%clk 0:01:10]}  Rd1 {[%clk 0:01:31]} 34. Rxa7 {[%clk 0:01:08]}  Rxd5 {[%clk 0:01:30]} 35. a4 {[%clk 0:01:06]}  Kf8 {[%clk 0:01:30]} 36. b4 {[%clk 0:01:04]}  Rd4 {[%clk 0:01:29]} 37. b5 {[%clk 0:01:04]}  Rb4 {[%clk 0:01:28]} 38. Kg3 {[%clk 0:00:52]}  Ke8 {[%clk 0:01:27]} 39. Kf3 {[%clk 0:00:51]}  d5 {[%clk 0:01:28]} 40. Ke3 {[%clk 0:00:51]}  g6 {[%clk 0:01:20]} 41. Kd3 {[%clk 0:00:49]}  f5 {[%clk 0:01:19]} 42. gxf5 {[%clk 0:00:49]}  gxf5 {[%clk 0:01:18]} 43. Kc3 {[%clk 0:00:50]}  Rc4+ {[%clk 0:01:11]} 44. Kd3 {[%clk 0:00:46]}  Rb4 {[%clk 0:01:11]} 45. Kc3 {[%clk 0:00:46]}  Rc4+ {[%clk 0:01:11]} 46. Kb3 {[%clk 0:00:46]}  Rc1 {[%clk 0:01:01]} 47. a5 {[%clk 0:00:34]}  Rb1+ {[%clk 0:00:55]} 48. Ka4 {[%clk 0:00:33]}  Ra1+ {[%clk 0:00:55]} 49. Kb4 {[%clk 0:00:33]}  Rb1+ {[%clk 0:00:55]} 50. Kc5 {[%clk 0:00:33]}  d4 {[%clk 0:00:54]} 51. Kxd4 {[%clk 0:00:18]}  Rxb5 {[%clk 0:00:53]} 52. Ke3 {[%clk 0:00:17]}  Kd8 {[%clk 0:00:50]} 53. Kf4 {[%clk 0:00:17]}  Kc8 {[%clk 0:00:49]} 54. a6 {[%clk 0:00:15]}  Kb8 {[%clk 0:00:49]} 55. Rb7+ {[%clk 0:00:15]}  Rxb7 {[%clk 0:00:48]} 56. axb7 {[%clk 0:00:16]}  Kxb7 {[%clk 0:00:48]} 57. Kxf5 {[%clk 0:00:17]}  Kc7 {[%clk 0:00:48]} 58. Kg6 {[%clk 0:00:18]}  Kd7 {[%clk 0:00:49]} 59. Kxh6 {[%clk 0:00:18]}  Ke7 {[%clk 0:00:49]} 60. Kg7 {[%clk 0:00:19]}  Ke6 {[%clk 0:00:49]} 61. g4 {[%clk 0:00:18]}  Ke5 {[%clk 0:00:48]} 62. h4 {[%clk 0:00:19]}  Kf4 {[%clk 0:00:47]} 63. h5 {[%clk 0:00:19]}  Kg5 {[%clk 0:00:47]} 64. h6 {[%clk 0:00:20]}  Kxg4 {[%clk 0:00:47]} 65. h7 {[%clk 0:00:21]}  Kf4 {[%clk 0:00:47]} 66. h8=Q {[%clk 0:00:22]}  Ke4 {[%clk 0:00:48]} 67. Qe8+ {[%clk 0:00:22]}  Kd4 {[%clk 0:00:47]} 68. Qe6 {[%clk 0:00:22]}  Kc5 {[%clk 0:00:47]} 69. Qd7 {[%clk 0:00:21]}  Kc4 {[%clk 0:00:46]} 70. Qd6 {[%clk 0:00:21]}  Kc3 {[%clk 0:00:44]} 71. Qd5 {[%clk 0:00:21]}  Kb4 {[%clk 0:00:44]} 72. Kf6 {[%clk 0:00:21]}  Kc3 {[%clk 0:00:44]} 73. Ke5 {[%clk 0:00:22]}  Kb4 {[%clk 0:00:44]} 74. Kd4 {[%clk 0:00:22]}  Ka3 {[%clk 0:00:40]} 75. Qb5 {[%clk 0:00:23]}  Ka2 {[%clk 0:00:40]} 76. Kc3 {[%clk 0:00:23]}  Ka3 {[%clk 0:00:40]} 77. Qb3# {[%clk 0:00:24]} 1-0


[Site "https://www.chess.com"]

[Event "Titled Tuesday Blitz February 07 Early 2023"]
[White "Vargas, Mauricio"]
[Black "Piesik, Piotr"]
[WhiteFideId "4404572"]
[BlackFideId "1136194"]
[WhiteElo "2035"]
[BlackElo "2426"]
[Result "0-1"]
[Round "08"]
[TimeControl "180+2"]
[Date "2023.02.07"]
[WhiteClock "0:00:05"]
[BlackClock "0:00:30"]

1. e4 {[%clk 0:02:53]}  g6 {[%clk 0:02:59]} 2. f4 {[%clk 0:02:49]}  Bg7 {[%clk 0:02:59]} 3. Nf3 {[%clk 0:02:49]}  d5 {[%clk 0:02:58]} 4. e5 {[%clk 0:02:48]}  c5 {[%clk 0:02:56]} 5. Nc3 {[%clk 0:02:44]}  Nc6 {[%clk 0:02:56]} 6. Bb5 {[%clk 0:02:43]}  Bg4 {[%clk 0:02:52]} 7. O-O {[%clk 0:02:40]}  e6 {[%clk 0:02:51]} 8. Bxc6+ {[%clk 0:02:38]}  bxc6 {[%clk 0:02:51]} 9. d3 {[%clk 0:02:38]}  Ne7 {[%clk 0:02:47]} 10. Qe1 {[%clk 0:02:37]}  Bxf3 {[%clk 0:02:46]} 11. Rxf3 {[%clk 0:02:37]}  h5 {[%clk 0:02:46]} 12. g3 {[%clk 0:02:35]}  Nf5 {[%clk 0:02:46]} 13. b3 {[%clk 0:02:27]}  Bf8 {[%clk 0:02:42]} 14. Na4 {[%clk 0:02:24]}  Rb8 {[%clk 0:02:28]} 15. c4 {[%clk 0:02:23]}  Be7 {[%clk 0:02:21]} 16. Ba3 {[%clk 0:02:23]}  O-O {[%clk 0:02:13]} 17. h3 {[%clk 0:02:13]}  dxc4 {[%clk 0:02:02]} 18. dxc4 {[%clk 0:02:12]}  Qd4+ {[%clk 0:02:02]} 19. Kh2 {[%clk 0:01:57]}  Rfd8 {[%clk 0:02:01]} 20. Rf2 {[%clk 0:01:41]}  Kg7 {[%clk 0:01:34]} 21. Bb2 {[%clk 0:01:29]}  Qd3 {[%clk 0:01:24]} 22. Rg2 {[%clk 0:01:15]}  Qf3 {[%clk 0:01:19]} 23. Ba3 {[%clk 0:00:56]}  h4 {[%clk 0:01:12]} 24. g4 {[%clk 0:00:49]}  Qxf4+ {[%clk 0:01:10]} 25. Kh1 {[%clk 0:00:44]}  Ng3+ {[%clk 0:01:06]} 26. Kg1 {[%clk 0:00:43]}  Rd3 {[%clk 0:00:56]} 27. Bxc5 {[%clk 0:00:39]}  Bxc5+ {[%clk 0:00:53]} 28. Nxc5 {[%clk 0:00:38]}  Qd4+ {[%clk 0:00:48]} 29. Qf2 {[%clk 0:00:35]}  Rd1+ {[%clk 0:00:48]} 30. Kh2 {[%clk 0:00:33]}  Qxa1 {[%clk 0:00:43]} 31. Qf6+ {[%clk 0:00:24]}  Kg8 {[%clk 0:00:42]} 32. Qxh4 {[%clk 0:00:20]}  Nf1+ {[%clk 0:00:38]} 33. Kg1 {[%clk 0:00:18]}  Ne3+ {[%clk 0:00:37]} 34. Kh2 {[%clk 0:00:14]}  Rh1+ {[%clk 0:00:36]} 35. Kg3 {[%clk 0:00:14]}  Qxe5+ {[%clk 0:00:32]} 36. Kf3 {[%clk 0:00:13]}  Rf1+ {[%clk 0:00:30]} 37. Ke2 {[%clk 0:00:12]}  Nxg2+ {[%clk 0:00:30]} 38. Kxf1 {[%clk 0:00:12]}  Nxh4 {[%clk 0:00:30]} 39. Nd7 {[%clk 0:00:12]}  Qf4+ {[%clk 0:00:30]} 40. Ke1 {[%clk 0:00:12]}  Qe3+ {[%clk 0:00:29]} 41. Kd1 {[%clk 0:00:11]}  Nf3 {[%clk 0:00:30]} 42. Nf6+ {[%clk 0:00:11]}  Kh8 {[%clk 0:00:29]} 43. Kc2 {[%clk 0:00:08]}  Qd2+ {[%clk 0:00:28]} 44. Kb1 {[%clk 0:00:07]}  Nd4 {[%clk 0:00:29]} 45. Ne4 {[%clk 0:00:06]}  Qc2+ {[%clk 0:00:29]} 46. Ka1 {[%clk 0:00:05]}  Qc1# {[%clk 0:00:30]} 0-1


[Site "https://www.chess.com"]

[Event "Titled Tuesday Blitz February 07 Early 2023"]
[White "Qashashvili, Alexandre"]
[Black "Quirke, Jeffrey"]
[WhiteFideId "13600842"]
[BlackFideId "2013029"]
[WhiteElo "2505"]
[BlackElo "2007"]
[Result "1-0"]
[Round "08"]
[TimeControl "180+2"]
[Date "2023.02.07"]
[WhiteClock "0:00:48"]
[BlackClock "0:00:43"]

1. e4 {[%clk 0:02:54]}  c5 {[%clk 0:02:59]} 2. Nc3 {[%clk 0:02:44]}  g6 {[%clk 0:02:56]} 3. Nf3 {[%clk 0:02:43]}  Bg7 {[%clk 0:02:55]} 4. d3 {[%clk 0:02:44]}  Nc6 {[%clk 0:02:53]} 5. Be3 {[%clk 0:02:44]}  d6 {[%clk 0:02:49]} 6. Qd2 {[%clk 0:02:43]}  e5 {[%clk 0:02:47]} 7. Nd5 {[%clk 0:02:41]}  Be6 {[%clk 0:02:47]} 8. Be2 {[%clk 0:02:39]}  Rb8 {[%clk 0:02:34]} 9. a4 {[%clk 0:02:35]}  a6 {[%clk 0:02:33]} 10. a5 {[%clk 0:02:35]}  Bxd5 {[%clk 0:02:23]} 11. exd5 {[%clk 0:02:30]}  Nd4 {[%clk 0:02:24]} 12. b4 {[%clk 0:02:23]}  Nxf3+ {[%clk 0:02:16]} 13. gxf3 {[%clk 0:02:19]}  cxb4 {[%clk 0:01:53]} 14. Qxb4 {[%clk 0:02:14]}  Ne7 {[%clk 0:01:52]} 15. Rb1 {[%clk 0:02:10]}  Nxd5 {[%clk 0:01:42]} 16. Qa4+ {[%clk 0:02:06]}  Qd7 {[%clk 0:01:38]} 17. Qxd7+ {[%clk 0:02:06]}  Kxd7 {[%clk 0:01:37]} 18. Ba7 {[%clk 0:02:07]}  Rbc8 {[%clk 0:01:17]} 19. Rxb7+ {[%clk 0:02:03]}  Rc7 {[%clk 0:01:17]} 20. Rxc7+ {[%clk 0:02:01]}  Kxc7 {[%clk 0:01:17]} 21. O-O {[%clk 0:01:54]}  Ra8 {[%clk 0:01:15]} 22. Be3 {[%clk 0:01:52]}  Nxe3 {[%clk 0:01:15]} 23. fxe3 {[%clk 0:01:53]}  Rb8 {[%clk 0:01:15]} 24. f4 {[%clk 0:01:47]}  Rb2 {[%clk 0:01:06]} 25. fxe5 {[%clk 0:01:45]}  Rxc2 {[%clk 0:01:01]} 26. Rxf7+ {[%clk 0:01:44]}  Kd8 {[%clk 0:00:58]} 27. Rxg7 {[%clk 0:01:36]}  Rxe2 {[%clk 0:00:57]} 28. exd6 {[%clk 0:01:28]}  Rxe3 {[%clk 0:00:56]} 29. Ra7 {[%clk 0:01:27]}  Rxd3 {[%clk 0:00:55]} 30. Rxa6 {[%clk 0:01:27]}  Rd2 {[%clk 0:00:45]} 31. h3 {[%clk 0:01:21]}  Ra2 {[%clk 0:00:44]} 32. Ra7 {[%clk 0:01:19]}  h5 {[%clk 0:00:44]} 33. a6 {[%clk 0:01:00]}  g5 {[%clk 0:00:43]} 34. Ra8+ {[%clk 0:00:48]}  Kd7 {[%clk 0:00:43]} 35. a7 {[%clk 0:00:48]} 1-0


[Site "https://www.chess.com"]

[Event "Titled Tuesday Blitz February 07 Early 2023"]
[White "So, Wesley"]
[Black "Rakhmanov, Aleksandr"]
[WhiteFideId "5202213"]
[BlackFideId "4173708"]
[WhiteElo "2760"]
[BlackElo "2632"]
[Result "1-0"]
[Round "09"]
[TimeControl "180+2"]
[Date "2023.02.07"]
[WhiteClock "0:00:27"]
[BlackClock "0:00:02"]

1. d4 {[%clk 0:02:59]}  Nf6 {[%clk 0:02:57]} 2. c4 {[%clk 0:02:58]}  d6 {[%clk 0:02:57]} 3. Nf3 {[%clk 0:02:54]}  g6 {[%clk 0:02:57]} 4. Nc3 {[%clk 0:02:52]}  Bf5 {[%clk 0:02:57]} 5. Qb3 {[%clk 0:02:45]}  b6 {[%clk 0:02:57]} 6. g3 {[%clk 0:02:37]}  Bg7 {[%clk 0:02:57]} 7. Bg2 {[%clk 0:02:36]}  Nc6 {[%clk 0:02:57]} 8. Qd1 {[%clk 0:02:25]}  O-O {[%clk 0:02:57]} 9. O-O {[%clk 0:02:19]}  e5 {[%clk 0:02:52]} 10. e3 {[%clk 0:02:11]}  Rb8 {[%clk 0:02:03]} 11. b3 {[%clk 0:02:01]}  Ne4 {[%clk 0:02:00]} 12. Bb2 {[%clk 0:02:00]}  Nxc3 {[%clk 0:01:59]} 13. Bxc3 {[%clk 0:02:01]}  Be4 {[%clk 0:01:47]} 14. Re1 {[%clk 0:01:53]}  Re8 {[%clk 0:01:42]} 15. d5 {[%clk 0:01:44]}  Ne7 {[%clk 0:01:37]} 16. Nd2 {[%clk 0:01:39]}  Bxg2 {[%clk 0:01:35]} 17. Kxg2 {[%clk 0:01:40]}  f5 {[%clk 0:01:35]} 18. e4 {[%clk 0:01:39]}  Qd7 {[%clk 0:01:18]} 19. Nf3 {[%clk 0:01:27]}  Bh6 {[%clk 0:01:03]} 20. Bd2 {[%clk 0:01:25]}  f4 {[%clk 0:01:03]} 21. h3 {[%clk 0:01:21]}  a5 {[%clk 0:00:57]} 22. gxf4 {[%clk 0:01:16]}  Bxf4 {[%clk 0:00:48]} 23. Bxf4 {[%clk 0:01:16]}  exf4 {[%clk 0:00:49]} 24. Qd2 {[%clk 0:01:07]}  Rf8 {[%clk 0:00:46]} 25. e5 {[%clk 0:01:08]}  dxe5 {[%clk 0:00:39]} 26. Rxe5 {[%clk 0:01:08]}  Nf5 {[%clk 0:00:31]} 27. Rae1 {[%clk 0:01:07]}  Rf6 {[%clk 0:00:28]} 28. Re6 {[%clk 0:00:59]}  Rbf8 {[%clk 0:00:24]} 29. Rxf6 {[%clk 0:00:58]}  Rxf6 {[%clk 0:00:25]} 30. Qxf4 {[%clk 0:00:57]}  Qf7 {[%clk 0:00:15]} 31. Ng5 {[%clk 0:00:55]}  Qd7 {[%clk 0:00:13]} 32. Qe5 {[%clk 0:00:46]}  Rf8 {[%clk 0:00:12]} 33. Qe6+ {[%clk 0:00:42]}  Qxe6 {[%clk 0:00:12]} 34. Nxe6 {[%clk 0:00:43]}  Rf7 {[%clk 0:00:12]} 35. Ng5 {[%clk 0:00:41]}  Rd7 {[%clk 0:00:09]} 36. Re8+ {[%clk 0:00:39]}  Kg7 {[%clk 0:00:10]} 37. Ne6+ {[%clk 0:00:35]}  Kf6 {[%clk 0:00:10]} 38. Rc8 {[%clk 0:00:32]}  c5 {[%clk 0:00:06]} 39. dxc6 {[%clk 0:00:28]}  Rd2 {[%clk 0:00:03]} 40. c7 {[%clk 0:00:28]}  Nh4+ {[%clk 0:00:02]} 41. Kf1 {[%clk 0:00:27]} 1-0


[Site "https://www.chess.com"]